[Event "Early-Titled-Tuesday-Blitz-October-10-2023"]
[Site "Chess.com"]
[Date "2023.10.10"]
[Round "10"]
[White "karwowskikacper"]
[Black "Agibileg"]
[Result "1/2-1/2"]
[WhiteElo "2557"]
[BlackElo "2686"]
[TimeControl "180+1"]
[EndTime "9:53:01 PDT"]
[Termination "Game drawn by repetition"]

1. e4 {[%clk 0:03:00.1]} 1... e5 {[%clk 0:02:55.4]} 2. Nf3 {[%clk 0:02:59.9]}
2... Nc6 {[%clk 0:02:53.8]} 3. d4 {[%clk 0:02:58.2]} 3... exd4 {[%clk
0:02:53.6]} 4. Nxd4 {[%clk 0:02:59.1]} 4... Nf6 {[%clk 0:02:53.7]} 5. Nc3 {[%clk
0:02:59.1]} 5... Bb4 {[%clk 0:02:53.1]} 6. Nxc6 {[%clk 0:02:59.4]} 6... bxc6
{[%clk 0:02:52.9]} 7. Bd3 {[%clk 0:03:00]} 7... d5 {[%clk 0:02:52.3]} 8. exd5
{[%clk 0:03:00.9]} 8... cxd5 {[%clk 0:02:53.2]} 9. O-O {[%clk 0:03:00.9]} 9...
O-O {[%clk 0:02:53.3]} 10. Bg5 {[%clk 0:03:01.4]} 10... c6 {[%clk 0:02:45.6]}
11. Qf3 {[%clk 0:03:00.8]} 11... h6 {[%clk 0:02:38.5]} 12. Bxf6 {[%clk
0:03:00.6]} 12... Qxf6 {[%clk 0:02:37.6]} 13. Qxf6 {[%clk 0:03:00.4]} 13... gxf6
{[%clk 0:02:38.5]} 14. Ne2 {[%clk 0:03:01.2]} 14... Rb8 {[%clk 0:02:34.8]} 15.
b3 {[%clk 0:02:56.8]} 15... Bd7 {[%clk 0:02:29.8]} 16. Ng3 {[%clk 0:02:54.7]}
16... Bc3 {[%clk 0:02:27.6]} 17. Rad1 {[%clk 0:02:54.1]} 17... Rfe8 {[%clk
0:02:27.3]} 18. h3 {[%clk 0:02:46.6]} 18... a5 {[%clk 0:02:24]} 19. a4 {[%clk
0:02:45.9]} 19... Re5 {[%clk 0:02:21.3]} 20. f4 {[%clk 0:02:43.9]} 20... Re3
{[%clk 0:02:19.2]} 21. Rf3 {[%clk 0:02:21.1]} 21... Rxf3 {[%clk 0:02:18.2]} 22.
gxf3 {[%clk 0:02:22]} 22... c5 {[%clk 0:02:02]} 23. Ne2 {[%clk 0:02:04]} 23...
Bb4 {[%clk 0:02:01.1]} 24. f5 {[%clk 0:01:50.1]} 24... c4 {[%clk 0:01:54.1]} 25.
bxc4 {[%clk 0:01:49.5]} 25... dxc4 {[%clk 0:01:54.8]} 26. Bxc4 {[%clk
0:01:50.4]} 26... Bxa4 {[%clk 0:01:55.7]} 27. Bb3 {[%clk 0:01:07.6]} 27... Bc5+
{[%clk 0:01:52.5]} 28. Kg2 {[%clk 0:01:04.1]} 28... Bxb3 {[%clk 0:01:52.6]} 29.
cxb3 {[%clk 0:00:35.6]} 29... Rxb3 {[%clk 0:01:53.5]} 30. Rd5 {[%clk 0:00:34]}
30... Bb4 {[%clk 0:01:51.3]} 31. Nf4 {[%clk 0:00:31.9]} 31... a4 {[%clk
0:01:40.7]} 32. Rd8+ {[%clk 0:00:29.7]} 32... Kh7 {[%clk 0:01:40.7]} 33. Ra8
{[%clk 0:00:28.5]} 33... a3 {[%clk 0:01:39.5]} 34. Nd5 {[%clk 0:00:28.3]} 34...
Bc3 {[%clk 0:01:39.3]} 35. Nxc3 {[%clk 0:00:23]} 35... Rxc3 {[%clk 0:01:37.8]}
36. Kg3 {[%clk 0:00:22.6]} 36... h5 {[%clk 0:01:37.6]} 37. h4 {[%clk 0:00:23]}
37... Kg7 {[%clk 0:01:37.1]} 38. Kf4 {[%clk 0:00:23.2]} 38... Rc4+ {[%clk
0:01:31.6]} 39. Kg3 {[%clk 0:00:22.3]} 39... Rc3 {[%clk 0:01:31.8]} 40. Kf4
{[%clk 0:00:22.4]} 40... Rb3 {[%clk 0:01:31.9]} 41. Kg3 {[%clk 0:00:21.8]} 41...
Rc3 {[%clk 0:01:21.3]} 1/2-1/2

[Event "Early-Titled-Tuesday-Blitz-October-10-2023"]
[Site "Chess.com"]
[Date "2023.10.10"]
[Round "10"]
[White "SchachmattTV_Tobi"]
[Black "ploxoi"]
[Result "0-1"]
[WhiteElo "2561"]
[BlackElo "2454"]
[TimeControl "180+1"]
[EndTime "9:53:03 PDT"]
[Termination "ploxoi won on time"]

1. e4 {[%clk 0:02:42.1]} 1... c5 {[%clk 0:03:00.1]} 2. Nc3 {[%clk 0:02:41.9]}
2... e6 {[%clk 0:03:00.4]} 3. g3 {[%clk 0:02:42.8]} 3... Nc6 {[%clk 0:03:00.3]}
4. Bg2 {[%clk 0:02:42.9]} 4... g6 {[%clk 0:03:00.9]} 5. d3 {[%clk 0:02:43.2]}
5... Bg7 {[%clk 0:03:01]} 6. Be3 {[%clk 0:02:43.3]} 6... Nd4 {[%clk 0:03:01.6]}
7. Qd2 {[%clk 0:02:41.5]} 7... Ne7 {[%clk 0:03:02]} 8. Nd1 {[%clk 0:02:40.7]}
8... d6 {[%clk 0:02:54.9]} 9. c3 {[%clk 0:02:40.6]} 9... Ndc6 {[%clk 0:02:55.3]}
10. Bh6 {[%clk 0:02:41.5]} 10... O-O {[%clk 0:02:54.2]} 11. h4 {[%clk
0:02:41.8]} 11... f6 {[%clk 0:02:42]} 12. Bxg7 {[%clk 0:02:40.1]} 12... Kxg7
{[%clk 0:02:41.9]} 13. h5 {[%clk 0:02:41]} 13... g5 {[%clk 0:02:42.2]} 14. h6+
{[%clk 0:02:41.2]} 14... Kh8 {[%clk 0:02:41.4]} 15. f4 {[%clk 0:02:41.9]} 15...
Ng6 {[%clk 0:02:35.4]} 16. Nf3 {[%clk 0:02:38.3]} 16... gxf4 {[%clk 0:02:16.9]}
17. gxf4 {[%clk 0:02:36.5]} 17... f5 {[%clk 0:02:17.8]} 18. exf5 {[%clk
0:01:53.2]} 18... Rxf5 {[%clk 0:02:15.2]} 19. Ne3 {[%clk 0:01:29.3]} 19... Rxf4
{[%clk 0:02:13.7]} 20. O-O-O {[%clk 0:01:30]} 20... Ra4 {[%clk 0:02:06]} 21. Kb1
{[%clk 0:01:29.1]} 21... Qa5 {[%clk 0:02:05.1]} 22. b3 {[%clk 0:01:27.9]} 22...
Rf4 {[%clk 0:02:04.2]} 23. Rdf1 {[%clk 0:01:25]} 23... Qd8 {[%clk 0:01:57.5]}
24. Bh3 {[%clk 0:00:59.4]} 24... Qf6 {[%clk 0:01:48.3]} 25. Ng4 {[%clk
0:00:28.5]} 25... Qe7 {[%clk 0:01:40.7]} 26. Rhg1 {[%clk 0:00:22.4]} 26... e5
{[%clk 0:01:39.4]} 27. Qg2 {[%clk 0:00:10.3]} 27... e4 {[%clk 0:01:35.6]} 28.
dxe4 {[%clk 0:00:08.9]} 28... Qxe4+ {[%clk 0:01:35.2]} 29. Kb2 {[%clk
0:00:09.2]} 29... Bxg4 {[%clk 0:01:22.3]} 30. Bxg4 {[%clk 0:00:09.2]} 30... Raf8
{[%clk 0:01:22.2]} 31. Rf2 {[%clk 0:00:03.1]} 31... Qe7 {[%clk 0:01:19.4]} 32.
Rgf1 {[%clk 0:00:03.1]} 32... Nge5 {[%clk 0:01:11.6]} 0-1

[Event "Early-Titled-Tuesday-Blitz-October-10-2023"]
[Site "Chess.com"]
[Date "2023.10.10"]
[Round "10"]
[White "Cheer_Down"]
[Black "KatakuriDono"]
[Result "0-1"]
[WhiteElo "2483"]
[BlackElo "2352"]
[TimeControl "180+1"]
[EndTime "9:53:07 PDT"]
[Termination "KatakuriDono won by checkmate"]

1. e4 {[%clk 0:03:00.9]} 1... e5 {[%clk 0:03:00]} 2. Nf3 {[%clk 0:03:00.6]} 2...
Nc6 {[%clk 0:03:00.4]} 3. Bc4 {[%clk 0:03:00.4]} 3... Nf6 {[%clk 0:03:00.2]} 4.
d3 {[%clk 0:03:00.3]} 4... Be7 {[%clk 0:03:00.3]} 5. O-O {[%clk 0:02:43.8]} 5...
O-O {[%clk 0:02:59.8]} 6. Re1 {[%clk 0:02:43.5]} 6... d6 {[%clk 0:02:59.4]} 7.
a4 {[%clk 0:02:43.6]} 7... Kh8 {[%clk 0:02:52.5]} 8. Nc3 {[%clk 0:02:42]} 8...
a6 {[%clk 0:02:48]} 9. a5 {[%clk 0:02:39.2]} 9... Be6 {[%clk 0:02:46.9]} 10. Nd5
{[%clk 0:02:20.4]} 10... Bg4 {[%clk 0:02:37.5]} 11. Be3 {[%clk 0:02:18.1]} 11...
Nxd5 {[%clk 0:02:30.9]} 12. exd5 {[%clk 0:02:17.7]} 12... Nb8 {[%clk 0:02:30.1]}
13. h3 {[%clk 0:02:04.1]} 13... Bh5 {[%clk 0:02:29.6]} 14. d4 {[%clk 0:01:55]}
14... e4 {[%clk 0:02:26.6]} 15. g4 {[%clk 0:01:55]} 15... Bg6 {[%clk 0:02:19.9]}
16. Nh2 {[%clk 0:01:50.7]} 16... Nd7 {[%clk 0:02:15.7]} 17. f4 {[%clk
0:01:45.1]} 17... exf3 {[%clk 0:02:08]} 18. Nxf3 {[%clk 0:01:44.8]} 18... f5
{[%clk 0:02:08.4]} 19. Nh2 {[%clk 0:01:35.9]} 19... f4 {[%clk 0:02:06.7]} 20.
Bf2 {[%clk 0:01:35.2]} 20... Nf6 {[%clk 0:02:02.2]} 21. Re6 {[%clk 0:01:24.8]}
21... Ne4 {[%clk 0:01:57.4]} 22. Nf3 {[%clk 0:01:22.5]} 22... Nxf2 {[%clk
0:01:55.4]} 23. Kxf2 {[%clk 0:01:22.7]} 23... Bh4+ {[%clk 0:01:55.6]} 24. Kg2
{[%clk 0:01:22.6]} 24... Bg3 {[%clk 0:01:54.3]} 25. Bd3 {[%clk 0:00:58.8]} 25...
Bf7 {[%clk 0:01:50.6]} 26. Qe2 {[%clk 0:00:53.5]} 26... Bxe6 {[%clk 0:01:48.4]}
27. dxe6 {[%clk 0:00:53.6]} 27... Qe7 {[%clk 0:01:46.3]} 28. d5 {[%clk
0:00:50.9]} 28... c6 {[%clk 0:01:44.3]} 29. c4 {[%clk 0:00:47.4]} 29... cxd5
{[%clk 0:01:44.5]} 30. cxd5 {[%clk 0:00:47.6]} 30... Rac8 {[%clk 0:01:45.2]} 31.
Qe4 {[%clk 0:00:47.1]} 31... g6 {[%clk 0:01:40.8]} 32. Ra4 {[%clk 0:00:44.4]}
32... Rc1 {[%clk 0:01:37.7]} 33. Rc4 {[%clk 0:00:42.7]} 33... Rxc4 {[%clk
0:01:36.3]} 34. Qxc4 {[%clk 0:00:42.8]} 34... Qg7 {[%clk 0:01:29.1]} 35. Qc2
{[%clk 0:00:39.1]} 35... Qe7 {[%clk 0:01:20.4]} 36. b3 {[%clk 0:00:37.5]} 36...
Rb8 {[%clk 0:01:19.2]} 37. Qc3+ {[%clk 0:00:34.1]} 37... Kg8 {[%clk 0:01:17.5]}
38. b4 {[%clk 0:00:30.2]} 38... b6 {[%clk 0:01:17.6]} 39. Bxa6 {[%clk
0:00:28.2]} 39... bxa5 {[%clk 0:01:17.7]} 40. bxa5 {[%clk 0:00:28.8]} 40... Qa7
{[%clk 0:01:17.1]} 41. Qd3 {[%clk 0:00:24.5]} 41... Qf2+ {[%clk 0:01:14.8]} 42.
Kh1 {[%clk 0:00:24.7]} 42... Rb1+ {[%clk 0:01:07.2]} 43. Qxb1 {[%clk 0:00:23.6]}
43... Qxf3+ {[%clk 0:01:07.5]} 44. Kg1 {[%clk 0:00:24.2]} 44... Qf2+ {[%clk
0:01:07.9]} 45. Kh1 {[%clk 0:00:24.7]} 45... Qh2# {[%clk 0:01:08.7]} 0-1

[Event "Early-Titled-Tuesday-Blitz-October-10-2023"]
[Site "Chess.com"]
[Date "2023.10.10"]
[Round "10"]
[White "boasovietica"]
[Black "ChessQueen"]
[Result "0-1"]
[WhiteElo "2508"]
[BlackElo "2708"]
[TimeControl "180+1"]
[EndTime "9:53:10 PDT"]
[Termination "ChessQueen won by checkmate"]

1. e4 {[%clk 0:02:59.6]} 1... c6 {[%clk 0:03:00]} 2. Nf3 {[%clk 0:02:57.5]} 2...
d5 {[%clk 0:03:00.9]} 3. Nc3 {[%clk 0:02:58.1]} 3... dxe4 {[%clk 0:03:01.3]} 4.
Nxe4 {[%clk 0:02:58.5]} 4... Nf6 {[%clk 0:03:02.2]} 5. Qe2 {[%clk 0:02:54.1]}
5... Nxe4 {[%clk 0:03:01.9]} 6. Qxe4 {[%clk 0:02:54.1]} 6... Nd7 {[%clk
0:03:02.6]} 7. Bc4 {[%clk 0:02:52.4]} 7... Nf6 {[%clk 0:03:03]} 8. Ne5 {[%clk
0:02:50]} 8... e6 {[%clk 0:03:03.1]} 9. Qe2 {[%clk 0:02:48.6]} 9... b5 {[%clk
0:03:01.9]} 10. Bb3 {[%clk 0:02:43.1]} 10... Qc7 {[%clk 0:02:56.7]} 11. d4
{[%clk 0:02:41.4]} 11... Bd6 {[%clk 0:02:56.3]} 12. O-O {[%clk 0:02:40.3]} 12...
O-O {[%clk 0:02:56.2]} 13. c3 {[%clk 0:02:38.2]} 13... c5 {[%clk 0:02:53.9]} 14.
Bg5 {[%clk 0:02:31.8]} 14... Nd5 {[%clk 0:02:37.6]} 15. Bxd5 {[%clk 0:02:06.2]}
15... exd5 {[%clk 0:02:37.4]} 16. Nf3 {[%clk 0:02:06.2]} 16... c4 {[%clk
0:02:33.1]} 17. Bh4 {[%clk 0:02:03.9]} 17... Bf5 {[%clk 0:02:31.3]} 18. Bg3
{[%clk 0:02:03.2]} 18... Bd3 {[%clk 0:02:28.5]} 19. Qd2 {[%clk 0:02:02.8]} 19...
Bxf1 {[%clk 0:02:27.5]} 20. Rxf1 {[%clk 0:02:03]} 20... Rfe8 {[%clk 0:02:26.5]}
21. Qg5 {[%clk 0:02:02.3]} 21... Bxg3 {[%clk 0:02:22.3]} 22. hxg3 {[%clk
0:02:01.3]} 22... Qd6 {[%clk 0:02:18.5]} 23. a4 {[%clk 0:01:55.1]} 23... f6
{[%clk 0:02:00.5]} 24. Qh5 {[%clk 0:01:49]} 24... g6 {[%clk 0:01:56]} 25. Qh4
{[%clk 0:01:39.7]} 25... bxa4 {[%clk 0:01:52.5]} 26. Ra1 {[%clk 0:01:36.8]}
26... Qc6 {[%clk 0:01:50.3]} 27. g4 {[%clk 0:01:33.1]} 27... Re4 {[%clk
0:01:37.9]} 28. Qg3 {[%clk 0:01:31.1]} 28... g5 {[%clk 0:01:36.7]} 29. Nd2
{[%clk 0:01:21.9]} 29... Re6 {[%clk 0:01:35.3]} 30. Nf1 {[%clk 0:01:20.4]} 30...
Rae8 {[%clk 0:01:32.4]} 31. Ne3 {[%clk 0:01:20.5]} 31... Qb5 {[%clk 0:01:19.6]}
32. Nf5 {[%clk 0:01:12.2]} 32... Qxb2 {[%clk 0:01:06.3]} 33. Rxa4 {[%clk
0:01:09.8]} 33... Re1+ {[%clk 0:00:47.7]} 34. Kh2 {[%clk 0:01:09.2]} 34... Qc1
{[%clk 0:00:40.8]} 35. Qc7 {[%clk 0:00:52.4]} 35... Rh1+ {[%clk 0:00:40.6]} 36.
Kg3 {[%clk 0:00:51.5]} 36... Qxc3+ {[%clk 0:00:40.4]} 37. Ne3 {[%clk 0:00:35.8]}
37... Rxe3+ {[%clk 0:00:39.3]} 38. fxe3 {[%clk 0:00:35.3]} 38... Qxe3# {[%clk
0:00:39.2]} 0-1

[Event "Early-Titled-Tuesday-Blitz-October-10-2023"]
[Site "Chess.com"]
[Date "2023.10.10"]
[Round "10"]
[White "masterofpuppets2"]
[Black "Shivananda1964"]
[Result "1-0"]
[WhiteElo "2514"]
[BlackElo "2405"]
[TimeControl "180+1"]
[EndTime "9:53:10 PDT"]
[Termination "masterofpuppets2 won on time"]

1. d4 {[%clk 0:03:00.9]} 1... Nf6 {[%clk 0:02:57.1]} 2. c4 {[%clk 0:03:01.2]}
2... Nc6 {[%clk 0:02:55.9]} 3. Nf3 {[%clk 0:03:00.3]} 3... e6 {[%clk 0:02:54]}
4. g3 {[%clk 0:02:58.2]} 4... Bb4+ {[%clk 0:02:53.4]} 5. Bd2 {[%clk 0:02:58.8]}
5... Qe7 {[%clk 0:02:53.8]} 6. Nc3 {[%clk 0:02:58.2]} 6... d6 {[%clk 0:02:52]}
7. Bg2 {[%clk 0:02:57]} 7... a5 {[%clk 0:02:46.7]} 8. O-O {[%clk 0:02:56.1]}
8... Bxc3 {[%clk 0:02:46.5]} 9. Bxc3 {[%clk 0:02:56.2]} 9... e5 {[%clk
0:02:46.9]} 10. d5 {[%clk 0:02:45.1]} 10... Nb8 {[%clk 0:02:46.6]} 11. Ne1
{[%clk 0:02:45.7]} 11... O-O {[%clk 0:02:43.7]} 12. e4 {[%clk 0:02:45.5]} 12...
Ng4 {[%clk 0:02:38.9]} 13. Nd3 {[%clk 0:02:39.8]} 13... f5 {[%clk 0:02:35.4]}
14. exf5 {[%clk 0:02:39.5]} 14... Bxf5 {[%clk 0:02:35.4]} 15. h3 {[%clk
0:02:36]} 15... Nh6 {[%clk 0:02:31.3]} 16. Qe2 {[%clk 0:02:31.7]} 16... Nd7
{[%clk 0:02:19.4]} 17. Rae1 {[%clk 0:02:30.8]} 17... Bxd3 {[%clk 0:01:53.1]} 18.
Qxd3 {[%clk 0:02:29.9]} 18... Nc5 {[%clk 0:01:53.8]} 19. Qe2 {[%clk 0:02:26.5]}
19... Nf5 {[%clk 0:01:45.1]} 20. b3 {[%clk 0:02:21]} 20... b6 {[%clk 0:01:39.2]}
21. Kh2 {[%clk 0:02:20.5]} 21... Qg5 {[%clk 0:01:28.4]} 22. h4 {[%clk
0:02:12.3]} 22... Qh6 {[%clk 0:01:15]} 23. Rd1 {[%clk 0:01:57.7]} 23... Rae8
{[%clk 0:01:12.2]} 24. Qd2 {[%clk 0:01:55.7]} 24... Qh5 {[%clk 0:00:54]} 25. Bh3
{[%clk 0:01:43.4]} 25... Nxh4 {[%clk 0:00:27.8]} 26. gxh4 {[%clk 0:01:41.6]}
26... Qxh4 {[%clk 0:00:24.1]} 27. f3 {[%clk 0:01:27]} 27... Rf6 {[%clk
0:00:20.2]} 28. Qg2 {[%clk 0:01:12.5]} 28... Rg6 {[%clk 0:00:18.2]} 29. Qf2
{[%clk 0:01:13]} 29... Qf4+ {[%clk 0:00:17.7]} 30. Kh1 {[%clk 0:01:13.1]} 30...
Rg3 {[%clk 0:00:16.6]} 31. Qh2 {[%clk 0:01:03.7]} 31... Rf8 {[%clk 0:00:09.2]}
32. Bd2 {[%clk 0:01:01.8]} 1-0

[Event "Early-Titled-Tuesday-Blitz-October-10-2023"]
[Site "Chess.com"]
[Date "2023.10.10"]
[Round "10"]
[White "dosto07"]
[Black "PatzerSmashers"]
[Result "1-0"]
[WhiteElo "2515"]
[BlackElo "2416"]
[TimeControl "180+1"]
[EndTime "9:53:12 PDT"]
[Termination "dosto07 won by resignation"]

1. e4 {[%clk 0:03:00.9]} 1... c5 {[%clk 0:02:59.8]} 2. Nf3 {[%clk 0:03:00.4]}
2... d6 {[%clk 0:02:57.5]} 3. Bb5+ {[%clk 0:02:59.5]} 3... Nd7 {[%clk
0:02:56.7]} 4. d4 {[%clk 0:02:59.1]} 4... cxd4 {[%clk 0:02:56.6]} 5. Qxd4 {[%clk
0:02:59.2]} 5... Nf6 {[%clk 0:02:52.5]} 6. Nc3 {[%clk 0:02:58]} 6... a6 {[%clk
0:02:52.3]} 7. Bxd7+ {[%clk 0:02:58.1]} 7... Bxd7 {[%clk 0:02:50.9]} 8. Bg5
{[%clk 0:02:57.9]} 8... e6 {[%clk 0:02:29]} 9. O-O-O {[%clk 0:02:57.1]} 9... Be7
{[%clk 0:02:29.4]} 10. e5 {[%clk 0:02:56.8]} 10... dxe5 {[%clk 0:02:22.5]} 11.
Nxe5 {[%clk 0:02:56.9]} 11... Bc6 {[%clk 0:02:18.4]} 12. Nxc6 {[%clk 0:02:57.1]}
12... bxc6 {[%clk 0:02:19.3]} 13. Bxf6 {[%clk 0:02:57.4]} 13... Bxf6 {[%clk
0:02:17.2]} 14. Qc5 {[%clk 0:02:57.6]} 14... Qc7 {[%clk 0:02:09.9]} 15. Ne4
{[%clk 0:02:57.2]} 15... Be7 {[%clk 0:02:05.5]} 16. Nd6+ {[%clk 0:02:53.6]}
16... Bxd6 {[%clk 0:02:05.1]} 17. Qxd6 {[%clk 0:02:52]} 17... Qxd6 {[%clk
0:01:55.6]} 18. Rxd6 {[%clk 0:02:51.9]} 18... Rc8 {[%clk 0:01:51.2]} 19. Rhd1
{[%clk 0:02:51.4]} 19... O-O {[%clk 0:01:37.4]} 20. R1d3 {[%clk 0:02:51.1]}
20... Rc7 {[%clk 0:01:30.8]} 21. Rd8 {[%clk 0:02:43.4]} 21... g6 {[%clk
0:01:23.3]} 22. Rxf8+ {[%clk 0:02:40.8]} 22... Kxf8 {[%clk 0:01:24.2]} 23. Rd8+
{[%clk 0:02:40.9]} 23... Ke7 {[%clk 0:01:18.1]} 24. Ra8 {[%clk 0:02:41.4]} 24...
e5 {[%clk 0:01:15.7]} 25. Rxa6 {[%clk 0:02:41.2]} 25... f5 {[%clk 0:01:16.4]}
26. Kd2 {[%clk 0:02:37.5]} 26... h5 {[%clk 0:01:15]} 27. h4 {[%clk 0:02:36.5]}
27... Kd6 {[%clk 0:01:11.4]} 28. a4 {[%clk 0:02:32.8]} 28... g5 {[%clk
0:01:01.5]} 29. hxg5 {[%clk 0:02:29.2]} 29... Rg7 {[%clk 0:01:01.9]} 30. b4
{[%clk 0:02:18]} 30... Kd5 {[%clk 0:00:54.7]} 31. Kd3 {[%clk 0:01:56]} 31... e4+
{[%clk 0:00:54.8]} 32. Ke3 {[%clk 0:01:56.2]} 32... Rxg5 {[%clk 0:00:55.6]} 33.
g3 {[%clk 0:01:56.4]} 33... Rg4 {[%clk 0:00:20.3]} 34. Rb6 {[%clk 0:01:48.1]}
34... Kc4 {[%clk 0:00:18.5]} 35. a5 {[%clk 0:01:46.2]} 35... Rg7 {[%clk
0:00:15.9]} 36. a6 {[%clk 0:01:41.1]} 36... Kc3 {[%clk 0:00:07.6]} 37. Rxc6+
{[%clk 0:01:33.9]} 37... Kxb4 {[%clk 0:00:07.4]} 38. Rf6 {[%clk 0:01:33.6]}
38... Rg5 {[%clk 0:00:02.4]} 39. a7 {[%clk 0:01:31.4]} 39... Rg8 {[%clk
0:00:02.7]} 40. Rxf5 {[%clk 0:01:31.4]} 40... Ra8 {[%clk 0:00:02.4]} 41. Rf7
{[%clk 0:01:31]} 41... Kc3 {[%clk 0:00:02.1]} 42. Kxe4 {[%clk 0:01:31.3]} 42...
Kxc2 {[%clk 0:00:02.9]} 43. f4 {[%clk 0:01:31.3]} 43... Kc3 {[%clk 0:00:03.8]}
44. f5 {[%clk 0:01:31.5]} 44... Rf8 {[%clk 0:00:04.2]} 45. Rxf8 {[%clk
0:01:30.8]} 1-0

[Event "Early-Titled-Tuesday-Blitz-October-10-2023"]
[Site "Chess.com"]
[Date "2023.10.10"]
[Round "10"]
[White "Alina_Gumerovna"]
[Black "Boxerandchessplayer"]
[Result "1-0"]
[WhiteElo "2134"]
[BlackElo "2179"]
[TimeControl "180+1"]
[EndTime "9:53:12 PDT"]
[Termination "Alina_Gumerovna won on time"]

1. e4 {[%clk 0:03:00]} 1... e6 {[%clk 0:02:59.1]} 2. d4 {[%clk 0:02:59.8]} 2...
d5 {[%clk 0:02:59.4]} 3. Nd2 {[%clk 0:02:57.9]} 3... dxe4 {[%clk 0:02:59]} 4.
Nxe4 {[%clk 0:02:57.8]} 4... Nd7 {[%clk 0:02:59.9]} 5. Nf3 {[%clk 0:02:57.4]}
5... Ngf6 {[%clk 0:03:00.6]} 6. Ng3 {[%clk 0:02:57]} 6... Be7 {[%clk 0:03:01.2]}
7. Bd3 {[%clk 0:02:54.4]} 7... O-O {[%clk 0:03:01.7]} 8. O-O {[%clk 0:02:54.7]}
8... b6 {[%clk 0:03:02.3]} 9. b3 {[%clk 0:02:52.7]} 9... Bb7 {[%clk 0:03:02.8]}
10. Bb2 {[%clk 0:02:53.1]} 10... c5 {[%clk 0:03:01.2]} 11. c4 {[%clk 0:02:51.6]}
11... Rc8 {[%clk 0:02:59]} 12. h3 {[%clk 0:02:51.8]} 12... Qc7 {[%clk
0:02:59.2]} 13. Re1 {[%clk 0:02:49]} 13... Qb8 {[%clk 0:02:57.3]} 14. d5 {[%clk
0:02:48]} 14... Rfe8 {[%clk 0:02:25.3]} 15. dxe6 {[%clk 0:02:46.3]} 15... fxe6
{[%clk 0:02:26.2]} 16. Rxe6 {[%clk 0:02:43]} 16... Nf8 {[%clk 0:02:26]} 17. Re1
{[%clk 0:02:41.1]} 17... Qa8 {[%clk 0:02:26]} 18. Nf5 {[%clk 0:02:37.2]} 18...
Bxf3 {[%clk 0:02:09.8]} 19. Qxf3 {[%clk 0:02:38.1]} 19... Qxf3 {[%clk
0:02:07.9]} 20. gxf3 {[%clk 0:02:39]} 20... Ng6 {[%clk 0:02:07.8]} 21. Nxe7+
{[%clk 0:02:36.4]} 21... Rxe7 {[%clk 0:02:08.7]} 22. Bxg6 {[%clk 0:02:27.5]}
22... Rxe1+ {[%clk 0:02:07.2]} 23. Rxe1 {[%clk 0:02:28.4]} 23... hxg6 {[%clk
0:02:07.6]} 24. Re7 {[%clk 0:02:28.7]} 24... Ra8 {[%clk 0:01:41]} 25. Kg2 {[%clk
0:02:24.6]} 25... Kf8 {[%clk 0:01:36.8]} 26. Rb7 {[%clk 0:02:15.6]} 26... Ne8
{[%clk 0:01:30.1]} 27. f4 {[%clk 0:02:13.2]} 27... Kg8 {[%clk 0:01:29.1]} 28.
Kf3 {[%clk 0:02:12.9]} 28... Kf8 {[%clk 0:01:29.6]} 29. Be5 {[%clk 0:02:09.1]}
29... Nf6 {[%clk 0:00:54]} 30. h4 {[%clk 0:02:00.5]} 30... Kg8 {[%clk
0:00:17.1]} 31. Bb8 {[%clk 0:01:52.1]} 31... Ne8 {[%clk 0:00:07.1]} 32. Be5
{[%clk 0:01:47.7]} 32... Nf6 {[%clk 0:00:07]} 33. Ke2 {[%clk 0:01:42.7]} 33...
Ne8 {[%clk 0:00:05.4]} 34. f3 {[%clk 0:01:42.4]} 34... Kf8 {[%clk 0:00:04.4]}
35. Ke3 {[%clk 0:01:42.3]} 35... Nf6 {[%clk 0:00:03.9]} 36. Bb8 {[%clk
0:01:34.1]} 36... Ne8 {[%clk 0:00:03.1]} 37. Ke4 {[%clk 0:01:34]} 37... Kg8
{[%clk 0:00:01.8]} 38. Ke5 {[%clk 0:01:31.5]} 38... Kf8 {[%clk 0:00:01]} 39. a4
{[%clk 0:01:23.1]} 1-0

[Event "Early-Titled-Tuesday-Blitz-October-10-2023"]
[Site "Chess.com"]
[Date "2023.10.10"]
[Round "10"]
[White "Let_it_be_1"]
[Black "fastestmindalive"]
[Result "1-0"]
[WhiteElo "2567"]
[BlackElo "2710"]
[TimeControl "180+1"]
[EndTime "9:53:14 PDT"]
[Termination "Let_it_be_1 won by resignation"]

1. e4 {[%clk 0:03:00.9]} 1... e5 {[%clk 0:02:58.6]} 2. Nf3 {[%clk 0:03:00.8]}
2... Nc6 {[%clk 0:02:56.1]} 3. Bb5 {[%clk 0:03:00.9]} 3... a6 {[%clk 0:02:54.7]}
4. Ba4 {[%clk 0:03:01.1]} 4... Nf6 {[%clk 0:02:54.7]} 5. d4 {[%clk 0:03:01.1]}
5... exd4 {[%clk 0:02:47.5]} 6. O-O {[%clk 0:03:01]} 6... Nxe4 {[%clk
0:02:44.5]} 7. Re1 {[%clk 0:02:58.7]} 7... d5 {[%clk 0:02:43.7]} 8. Nxd4 {[%clk
0:02:57.8]} 8... Bc5 {[%clk 0:02:42.2]} 9. Bxc6+ {[%clk 0:02:43.4]} 9... bxc6
{[%clk 0:02:40.2]} 10. f3 {[%clk 0:02:43.5]} 10... O-O {[%clk 0:02:23.4]} 11.
fxe4 {[%clk 0:02:42.5]} 11... Qh4 {[%clk 0:02:19.6]} 12. Be3 {[%clk 0:02:32.2]}
12... dxe4 {[%clk 0:02:04.9]} 13. Nf5 {[%clk 0:02:06]} 13... Bxf5 {[%clk
0:01:59.8]} 14. Bxc5 {[%clk 0:02:05.4]} 14... e3 {[%clk 0:01:54.1]} 15. Bxe3
{[%clk 0:01:44.5]} 15... Bxc2 {[%clk 0:01:45.7]} 16. Qe2 {[%clk 0:01:36.5]}
16... Rab8 {[%clk 0:01:44]} 17. Nc3 {[%clk 0:01:26.5]} 17... Rxb2 {[%clk
0:01:38]} 18. Na4 {[%clk 0:01:18.3]} 18... Qxa4 {[%clk 0:01:37]} 19. Bc5 {[%clk
0:01:05.6]} 19... h6 {[%clk 0:01:15.6]} 20. Bxf8 {[%clk 0:01:02.1]} 20... Qd4+
{[%clk 0:01:15.2]} 21. Kh1 {[%clk 0:00:59.3]} 21... Be4 {[%clk 0:01:15]} 22.
Qxe4 {[%clk 0:00:57.9]} 22... Qxe4 {[%clk 0:01:11.4]} 23. Rxe4 {[%clk 0:00:58]}
23... Kxf8 {[%clk 0:01:11.8]} 24. Rc4 {[%clk 0:00:58.1]} 24... Rb6 {[%clk
0:01:07.9]} 25. Rac1 {[%clk 0:00:57.9]} 25... Ke7 {[%clk 0:01:06.5]} 26. Rxc6
{[%clk 0:00:57.9]} 26... Rb2 {[%clk 0:01:07.1]} 27. Rxc7+ {[%clk 0:00:56.2]}
27... Kf6 {[%clk 0:01:07.6]} 28. R7c6+ {[%clk 0:00:56.2]} 28... Kg5 {[%clk
0:01:04.8]} 29. Rxa6 {[%clk 0:00:56.4]} 29... f5 {[%clk 0:01:05.1]} 30. h3
{[%clk 0:00:56.5]} 30... Kh4 {[%clk 0:01:01.5]} 31. Ra4+ {[%clk 0:00:54.6]}
31... Kh5 {[%clk 0:01:01.3]} 32. Ra1 {[%clk 0:00:53.6]} 32... g5 {[%clk
0:01:00.9]} 33. Rc4 {[%clk 0:00:52]} 33... g4 {[%clk 0:00:56.1]} 34. hxg4+
{[%clk 0:00:51.9]} 34... fxg4 {[%clk 0:00:56.2]} 35. a4 {[%clk 0:00:50.9]} 35...
Kh4 {[%clk 0:00:51.9]} 36. Kh2 {[%clk 0:00:51]} 36... h5 {[%clk 0:00:42.7]} 37.
a5 {[%clk 0:00:50.2]} 37... Rb5 {[%clk 0:00:40.8]} 38. a6 {[%clk 0:00:48.4]}
38... Ra5 {[%clk 0:00:41.2]} 39. g3+ {[%clk 0:00:40.1]} 1-0